[Event "Kadrioru MK Open A"]
[Site "Tallinn, Paul Keres Chess House, Estonia"]
[Date "2023.02.11"]
[Round "3.3"]
[White "Akhvedliani, Irakli"]
[Black "Medar, Marti"]
[Result "1-0"]
[TimeControl "90 minutes with 30 second increment from move 1"]
[WhiteTitle "FM"]
[WhiteElo "2420"]
[BlackElo "2063"]

1. d4 {

[%clk 01:30:57]

} {

[%emt 00:00:02]

} Nf6 {

[%clk 01:30:19]

} {

[%emt 00:00:41]

} 2. c4 {

[%clk 01:31:22]

} {

[%emt 00:00:06]

} e6 {

[%clk 01:30:41]

} {

[%emt 00:00:08]

} 3. Nf3 {

[%clk 01:31:49]

} {

[%emt 00:00:04]

} Bb4+ {

[%clk 01:30:55]

} {

[%emt 00:00:16]

} 4. Nbd2 {

[%clk 01:32:05]

} {

[%emt 00:00:14]

} d5 {

[%clk 01:26:31]

} {

[%emt 00:04:54]

} 5. a3 {

[%clk 01:30:07]

} {

[%emt 00:02:30]

} Be7 {

[%clk 01:26:31]

} {

[%emt 00:00:29]

} 6. e3 {

[%clk 01:24:34]

} {

[%emt 00:06:03]

} O-O {

[%clk 01:23:36]

} {

[%emt 00:03:24]

} 7. Bd3 {

[%clk 01:24:57]

} {

[%emt 00:00:08]

} Nbd7 {

[%clk 01:17:14]

} {

[%emt 00:06:51]

} 8. O-O {

[%clk 01:10:05]

} {

[%emt 00:15:23]

} dxc4 {

[%clk 01:09:04]

} {

[%emt 00:08:38]

} 9. Bxc4 {

[%clk 01:01:46]

} {

[%emt 00:08:50]

} c5 {

[%clk 01:08:14]

} {

[%emt 00:01:19]

} 10. e4 {

[%clk 00:56:24]

} {

[%emt 00:05:53]

} Nb6 {

[%clk 00:59:25]

} {

[%emt 00:09:18]

} 11. Bd3 {

[%clk 00:54:27]

} {

[%emt 00:02:28]

} Nh5 {

[%clk 00:53:13]

} {

[%emt 00:06:41]

} 12. dxc5 {

[%clk 00:46:13]

} {

[%emt 00:08:44]

} Bxc5 {

[%clk 00:46:53]

} {

[%emt 00:06:49]

} 13. Nb3 {

[%clk 00:44:41]

} {

[%emt 00:02:03]

} Be7 {

[%clk 00:46:13]

} {

[%emt 00:01:09]

} 14. Qe2 {

[%clk 00:37:34]

} {

[%emt 00:07:37]

} Bd7 {

[%clk 00:42:28]

} {

[%emt 00:04:14]

} 15. e5 {

[%clk 00:24:23]

} {

[%emt 00:13:42]

} Nd5 {

[%clk 00:34:35]

} {

[%emt 00:08:23]

} 16. Qe4 {

[%clk 00:24:15]

} {

[%emt 00:00:39]

} g6 {

[%clk 00:34:47]

} {

[%emt 00:00:18]

} 17. Bh6 {

[%clk 00:22:20]

} {

[%emt 00:02:26]

} Re8 {

[%clk 00:35:01]

} {

[%emt 00:00:16]

} 18. Nbd4 {

[%clk 00:19:24]

} {

[%emt 00:03:26]

} Qb6 {

[%clk 00:32:55]

} {

[%emt 00:02:36]

} 19. Rab1 {

[%clk 00:17:41]

} {

[%emt 00:02:14]

} a5 {

[%clk 00:31:40]

} {

[%emt 00:01:45]

} 20. Bc4 {

[%clk 00:16:56]

} {

[%emt 00:01:15]

} Red8 {

[%clk 00:30:12]

} {

[%emt 00:01:58]

} 21. Bxd5 {

[%clk 00:13:09]

} {

[%emt 00:04:18]

} exd5 {

[%clk 00:30:29]

} {

[%emt 00:00:13]

} 22. Qxd5 {

[%clk 00:11:49]

} {

[%emt 00:01:51]

} Bf5 {

[%clk 00:28:35]

} {

[%emt 00:02:23]

} 23. Nxf5 {

[%clk 00:11:22]

} {

[%emt 00:00:57]

} gxf5 {

[%clk 00:28:55]

} {

[%emt 00:00:10]

} 24. Be3 {

[%clk 00:11:47]

} {

[%emt 00:00:05]

} Rxd5 {

[%clk 00:18:19]

} {

[%emt 00:11:06]

} 25. Bxb6 {

[%clk 00:12:15]

} {

[%emt 00:00:02]

} Ra6 {

[%clk 00:18:16]

} {

[%emt 00:00:33]

} 26. Be3 {

[%clk 00:12:00]

} {

[%emt 00:00:45]

} f4 {

[%clk 00:17:13]

} {

[%emt 00:01:33]

} 27. Bd2 {

[%clk 00:10:21]

} {

[%emt 00:02:10]

} Rb6 {

[%clk 00:17:28]

} {

[%emt 00:00:14]

} 28. Bc3 {

[%clk 00:10:07]

} {

[%emt 00:00:44]

} Rb3 {

[%clk 00:16:47]

} {

[%emt 00:01:11]

} 29. Nd4 {

[%clk 00:09:27]

} {

[%emt 00:01:10]

} Rb6 {

[%clk 00:16:55]

} {

[%emt 00:00:21]

} 30. Nf5 {

[%clk 00:09:20]

} {

[%emt 00:00:38]

} Bf8 {

[%clk 00:16:18]

} {

[%emt 00:01:07]

} 31. Rbd1 {

[%clk 00:09:30]

} {

[%emt 00:00:20]

} Rxd1 {

[%clk 00:12:17]

} {

[%emt 00:04:31]

} 32. Rxd1 {

[%clk 00:09:58]

} {

[%emt 00:00:02]

} f6 {

[%clk 00:12:28]

} {

[%emt 00:00:19]

} 33. exf6 {

[%clk 00:08:13]

} {

[%emt 00:02:15]

} Nxf6 {

[%clk 00:12:24]

} {

[%emt 00:00:34]

} 34. f3 {

[%clk 00:08:31]

} {

[%emt 00:00:12]

} Bc5+ {

[%clk 00:12:22]

} {

[%emt 00:00:32]

} 35. Kf1 {

[%clk 00:09:00]

} {

[%emt 00:00:01]

} Kf7 {

[%clk 00:12:22]

} {

[%emt 00:00:30]

} 36. g4 {

[%clk 00:06:29]

} {

[%emt 00:03:01]

} Rb3 {

[%clk 00:12:02]

} {

[%emt 00:00:49]

} 37. g5 {

[%clk 00:05:14]

} {

[%emt 00:01:45]

} Nh5 {

[%clk 00:10:19]

} {

[%emt 00:02:14]

} 38. Nd6+ {

[%clk 00:05:29]

} {

[%emt 00:00:15]

} Ke6 {

[%clk 00:10:16]

} {

[%emt 00:00:33]

} 39. Nc4 {

[%clk 00:05:03]

} {

[%emt 00:00:56]

} 1-0

[Event "Kadrioru MK Open A"]
[Site "Tallinn, Paul Keres Chess House, Estonia"]
[Date "2023.02.11"]
[Round "3.4"]
[White "Sinitsina, Anastassia"]
[Black "Shvyrjov, Igor"]
[Result "1-0"]
[TimeControl "90 minutes with 30 second increment from move 1"]
[WhiteTitle "WFM"]
[BlackTitle "GM"]
[WhiteElo "2174"]
[BlackElo "2369"]

1. e4 {

[%clk 01:30:02]

} {

[%emt 00:00:58]

} d5 {

[%clk 01:30:28]

} {

[%emt 00:00:32]

} 2. exd5 {

[%clk 01:30:21]

} {

[%emt 00:00:11]

} Qxd5 {

[%clk 01:30:57]

} {

[%emt 00:00:01]

} 3. Nc3 {

[%clk 01:30:44]

} {

[%emt 00:00:07]

} Qd6 {

[%clk 01:31:17]

} {

[%emt 00:00:09]

} 4. d4 {

[%clk 01:30:52]

} {

[%emt 00:00:23]

} Nf6 {

[%clk 01:31:32]

} {

[%emt 00:00:16]

} 5. Bd3 {

[%clk 01:30:46]

} {

[%emt 00:00:36]

} g6 {

[%clk 01:31:20]

} {

[%emt 00:00:41]

} 6. Nge2 {

[%clk 01:31:06]

} {

[%emt 00:00:10]

} Bg7 {

[%clk 01:31:28]

} {

[%emt 00:00:22]

} 7. Bf4 {

[%clk 01:31:17]

} {

[%emt 00:00:18]

} Qd8 {

[%clk 01:31:30]

} {

[%emt 00:00:28]

} 8. Qd2 {

[%clk 01:31:33]

} {

[%emt 00:00:15]

} O-O {

[%clk 01:31:28]

} {

[%emt 00:00:32]

} 9. O-O-O {

[%clk 01:30:33]

} {

[%emt 00:01:30]

} Nc6 {

[%clk 01:29:04]

} {

[%emt 00:02:53]

} 10. Bb5 {

[%clk 01:18:05]

} {

[%emt 00:12:58]

} Nb4 {

[%clk 01:27:56]

} {

[%emt 00:01:38]

} 11. f3 {

[%clk 01:17:36]

} {

[%emt 00:01:00]

} Be6 {

[%clk 01:20:38]

} {

[%emt 00:07:48]

} 12. a3 {

[%clk 01:17:35]

} {

[%emt 00:00:32]

} a6 {

[%clk 01:19:51]

} {

[%emt 00:01:16]

} 13. Ba4 {

[%clk 01:17:40]

} {

[%emt 00:00:26]

} Nbd5 {

[%clk 01:20:03]

} {

[%emt 00:00:19]

} 14. Be5 {

[%clk 01:16:38]

} {

[%emt 00:01:32]

} Nb6 {

[%clk 01:20:03]

} {

[%emt 00:00:30]

} 15. Bb3 {

[%clk 01:16:57]

} {

[%emt 00:00:11]

} Bxb3 {

[%clk 01:17:32]

} {

[%emt 00:03:00]

} 16. cxb3 {

[%clk 01:17:21]

} {

[%emt 00:00:06]

} c6 {

[%clk 01:16:40]

} {

[%emt 00:01:22]

} 17. g4 {

[%clk 01:17:15]

} {

[%emt 00:00:36]

} Nbd7 {

[%clk 01:14:57]

} {

[%emt 00:02:12]

} 18. Bf4 {

[%clk 01:16:06]

} {

[%emt 00:01:39]

} Qb6 {

[%clk 01:14:34]

} {

[%emt 00:00:53]

} 19. Qc2 {

[%clk 01:15:38]

} {

[%emt 00:00:58]

} Nd5 {

[%clk 01:13:50]

} {

[%emt 00:01:14]

} 20. Nxd5 {

[%clk 01:15:33]

} {

[%emt 00:00:36]

} cxd5 {

[%clk 01:14:14]

} {

[%emt 00:00:06]

} 21. Kb1 {

[%clk 01:15:46]

} {

[%emt 00:00:16]

} Rac8 {

[%clk 01:14:11]

} {

[%emt 00:00:33]

} 22. Qd3 {

[%clk 01:16:09]

} {

[%emt 00:00:08]

} e5 {

[%clk 01:09:19]

} {

[%emt 00:05:22]

} 23. dxe5 {

[%clk 01:14:28]

} {

[%emt 00:02:12]

} Nxe5 {

[%clk 01:09:46]

} {

[%emt 00:00:03]

} 24. Bxe5 {

[%clk 01:13:23]

} {

[%emt 00:01:34]

} Bxe5 {

[%clk 01:10:10]

} {

[%emt 00:00:06]

} 25. h4 {

[%clk 01:12:06]

} {

[%emt 00:01:47]

} Bg7 {

[%clk 01:10:00]

} {

[%emt 00:00:40]

} 26. h5 {

[%clk 01:12:05]

} {

[%emt 00:00:32]

} Rfe8 {

[%clk 01:06:39]

} {

[%emt 00:03:51]

} 27. hxg6 {

[%clk 01:11:55]

} {

[%emt 00:00:40]

} hxg6 {

[%clk 01:04:45]

} {

[%emt 00:02:24]

} 28. Nf4 {

[%clk 01:10:41]

} {

[%emt 00:01:44]

} Qf6 {

[%clk 00:53:05]

} {

[%emt 00:12:10]

} 29. Qd2 {

[%clk 01:10:28]

} {

[%emt 00:00:44]

} Rcd8 {

[%clk 00:53:22]

} {

[%emt 00:00:13]

} 30. Rde1 {

[%clk 01:07:40]

} {

[%emt 00:03:18]

} Rxe1+ {

[%clk 00:32:47]

} {

[%emt 00:21:05]

} 31. Rxe1 {

[%clk 01:08:02]

} {

[%emt 00:00:08]

} Qg5 {

[%clk 00:33:02]

} {

[%emt 00:00:14]

} 32. Qa5 {

[%clk 01:06:15]

} {

[%emt 00:02:17]

} Bf6 {

[%clk 00:28:19]

} {

[%emt 00:05:13]

} 33. Qc7 {

[%clk 01:03:53]

} {

[%emt 00:02:52]

} d4 {

[%clk 00:28:07]

} {

[%emt 00:00:43]

} 34. Rd1 {

[%clk 00:53:53]

} {

[%emt 00:10:30]

} Be5 {

[%clk 00:12:28]

} {

[%emt 00:16:09]

} 35. Nh3 {

[%clk 00:54:19]

} {

[%emt 00:00:04]

} Qf6 {

[%clk 00:12:23]

} {

[%emt 00:00:35]

} 36. Qxb7 {

[%clk 00:54:30]

} {

[%emt 00:00:19]

} Rb8 {

[%clk 00:12:50]

} {

[%emt 00:00:03]

} 37. Qd5 {

[%clk 00:53:17]

} {

[%emt 00:01:43]

} Rb5 {

[%clk 00:12:22]

} {

[%emt 00:00:58]

} 38. Qa8+ {

[%clk 00:53:27]

} {

[%emt 00:00:20]

} Kg7 {

[%clk 00:12:50]

} {

[%emt 00:00:02]

} 39. Rd3 {

[%clk 00:53:32]

} {

[%emt 00:00:25]

} Qe6 {

[%clk 00:06:31]

} {

[%emt 00:06:49]

} 40. Qe4 {

[%clk 00:53:22]

} {

[%emt 00:00:40]

} f5 {

[%clk 00:06:54]

} {

[%emt 00:00:08]

} 41. gxf5 {

[%clk 00:52:04]

} {

[%emt 00:01:48]

} Qxf5 {

[%clk 00:05:14]

} {

[%emt 00:02:10]

} 42. Nf2 {

[%clk 00:50:22]

} {

[%emt 00:02:12]

} Kf7 {

[%clk 00:02:54]

} {

[%emt 00:02:50]

} 43. b4 {

[%clk 00:50:34]

} {

[%emt 00:00:18]

} Bg7 {

[%clk 00:02:33]

} {

[%emt 00:00:51]

} 44. Ka2 {

[%clk 00:50:03]

} {

[%emt 00:01:02]

} Rb6 {

[%clk 00:02:48]

} {

[%emt 00:00:15]

} 45. Rb3 {

[%clk 00:44:00]

} {

[%emt 00:06:32]

} Qb5 {

[%clk 00:02:12]

} {

[%emt 00:01:06]

} 46. Nd3 {

[%clk 00:42:44]

} {

[%emt 00:01:46]

} Re6 {

[%clk 00:02:17]

} {

[%emt 00:00:25]

} 47. Qf4+ {

[%clk 00:43:00]

} {

[%emt 00:00:14]

} Kg8 {

[%clk 00:01:49]

} {

[%emt 00:00:57]

} 48. Nc5 {

[%clk 00:43:11]

} {

[%emt 00:00:19]

} Re7 {

[%clk 00:01:22]

} {

[%emt 00:00:57]

} 49. Qd6 {

[%clk 00:43:22]

} {

[%emt 00:00:18]

} Qe8 {

[%clk 00:00:47]

} {

[%emt 00:01:06]

} 50. Qxa6 {

[%clk 00:43:25]

} {

[%emt 00:00:27]

} Qf7 {

[%clk 00:01:13]

} {

[%emt 00:00:04]

} 51. b5 {

[%clk 00:42:17]

} {

[%emt 00:01:39]

} Re3 {

[%clk 00:01:33]

} {

[%emt 00:00:10]

} 52. b6 {

[%clk 00:42:25]

} {

[%emt 00:00:22]

} Be5 {

[%clk 00:01:23]

} {

[%emt 00:00:39]

} 53. b7 {

[%clk 00:42:38]

} {

[%emt 00:00:17]

} Kg7 {

[%clk 00:01:49]

} {

[%emt 00:00:04]

} 54. Qe6 {

[%clk 00:42:01]

} {

[%emt 00:01:07]

} Qxe6 {

[%clk 00:00:38]

} {

[%emt 00:01:40]

} 55. Nxe6+ {

[%clk 00:42:10]

} {

[%emt 00:00:21]

} Kf7 {

[%clk 00:00:45]

} {

[%emt 00:00:22]

} 56. Nxd4 {

[%clk 00:42:36]

} {

[%emt 00:00:05]

} Re1 {

[%clk 00:00:56]

} {

[%emt 00:00:19]

} 57. b8=Q {

[%clk 00:42:49]

} {

[%emt 00:00:17]

} Bxb8 {

[%clk 00:01:20]

} {

[%emt 00:00:06]

} 58. Rxb8 {

[%clk 00:43:15]

} {

[%emt 00:00:04]

} g5 {

[%clk 00:01:36]

} {

[%emt 00:00:13]

} 59. a4 {

[%clk 00:43:26]

} {

[%emt 00:00:19]

} Ke7 {

[%clk 00:01:58]

} {

[%emt 00:00:07]

} 60. Rb5 {

[%clk 00:43:39]

} {

[%emt 00:00:18]

} Rd1 {

[%clk 00:02:24]

} {

[%emt 00:00:04]

} 61. Nf5+ {

[%clk 00:43:18]

} {

[%emt 00:00:51]

} Kd7 {

[%clk 00:02:47]

} {

[%emt 00:00:06]

} 62. Ne3 {

[%clk 00:43:26]

} {

[%emt 00:00:23]

} Re1 {

[%clk 00:03:09]

} {

[%emt 00:00:08]

} 63. Ng4 {

[%clk 00:43:49]

} {

[%emt 00:00:07]

} Kc6 {

[%clk 00:03:33]

} {

[%emt 00:00:06]

} 64. Rxg5 {

[%clk 00:44:14]

} {

[%emt 00:00:06]

} Re6 {

[%clk 00:03:52]

} {

[%emt 00:00:10]

} 65. Rg6 {

[%emt 00:02:31]

} 1-0

[Event "Kadrioru MK Open A"]
[Site "Tallinn, Paul Keres Chess House, Estonia"]
[Date "2023.02.11"]
[Round "3.5"]
[White "Jezov, Roman"]
[Black "Garber, Vjatseslav"]
[Result "1-0"]
[TimeControl "90 minutes with 30 second increment from move 1"]
[WhiteTitle "FM"]
[WhiteElo "2262"]
[BlackElo "2051"]

1. e4 {

[%clk 01:30:59]

} c5 {

[%clk 01:30:00]

} {

[%emt 00:01:00]

} 2. Be2 {

[%clk 01:31:23]

} {

[%emt 00:00:05]

} Nc6 {

[%clk 01:26:01]

} {

[%emt 00:04:29]

} 3. f4 {

[%clk 01:30:58]

} {

[%emt 00:00:55]

} Nd4 {

[%clk 01:26:00]

} {

[%emt 00:00:31]

} 4. Nf3 {

[%clk 01:30:45]

} {

[%emt 00:00:43]

} Nxe2 {

[%clk 01:24:04]

} {

[%emt 00:02:26]

} 5. Qxe2 {

[%clk 01:30:29]

} {

[%emt 00:00:46]

} g6 {

[%clk 01:24:29]

} {

[%emt 00:00:05]

} 6. Nc3 {

[%clk 01:29:31]

} {

[%emt 00:01:27]

} Bg7 {

[%clk 01:24:01]

} {

[%emt 00:00:59]

} 7. O-O {

[%clk 01:28:08]

} {

[%emt 00:01:52]

} d6 {

[%clk 01:21:31]

} {

[%emt 00:03:00]

} 8. e5 {

[%clk 01:27:40]

} {

[%emt 00:00:59]

} Nh6 {

[%clk 01:18:53]

} {

[%emt 00:03:08]

} 9. exd6 {

[%clk 01:24:30]

} {

[%emt 00:03:40]

} Qxd6 {

[%clk 01:19:07]

} {

[%emt 00:00:16]

} 10. Ne4 {

[%clk 01:24:55]

} {

[%emt 00:00:05]

} Qb6 {

[%clk 01:11:24]

} {

[%emt 00:08:14]

} 11. Qc4 {

[%clk 01:21:28]

} {

[%emt 00:03:56]

} Bf5 {

[%clk 01:09:56]

} {

[%emt 00:01:59]

} 12. Nxc5 {

[%clk 01:18:01]

} {

[%emt 00:03:56]

} O-O {

[%clk 01:06:26]

} {

[%emt 00:03:59]

} 13. d4 {

[%clk 01:18:09]

} {

[%emt 00:00:23]

} Rfd8 {

[%clk 01:05:39]

} {

[%emt 00:01:17]

} 14. c3 {

[%clk 01:18:21]

} {

[%emt 00:00:18]

} Rac8 {

[%clk 01:05:42]

} {

[%emt 00:00:27]

} 15. Qb3 {

[%clk 01:17:55]

} {

[%emt 00:00:56]

} Rc7 {

[%clk 00:58:18]

} {

[%emt 00:07:54]

} 16. Qxb6 {

[%clk 01:17:36]

} {

[%emt 00:00:49]

} axb6 {

[%clk 00:58:32]

} {

[%emt 00:00:01]

} 17. Nb3 {

[%clk 01:17:51]

} {

[%emt 00:00:29]

} Be4 {

[%clk 00:57:16]

} {

[%emt 00:01:47]

} 18. Be3 {

[%clk 01:17:17]

} {

[%emt 00:01:03]

} Nf5 {

[%clk 00:57:01]

} {

[%emt 00:00:45]

} 19. Kf2 {

[%clk 01:17:32]

} {

[%emt 00:00:14]

} Nd6 {

[%clk 00:57:13]

} {

[%emt 00:00:19]

} 20. Nbd2 {

[%clk 01:16:10]

} {

[%emt 00:01:52]

} Bd3 {

[%clk 00:57:36]

} {

[%emt 00:00:07]

} 21. Rfe1 {

[%clk 01:16:11]

} {

[%emt 00:00:29]

} f6 {

[%clk 00:57:17]

} {

[%emt 00:00:51]

} 22. d5 {

[%clk 01:14:36]

} {

[%emt 00:02:04]

} Nc8 {

[%clk 00:57:26]

} {

[%emt 00:00:21]

} 23. c4 {

[%clk 01:14:59]

} {

[%emt 00:00:06]

} b5 {

[%clk 00:57:23]

} {

[%emt 00:00:34]

} 24. Nd4 {

[%clk 01:14:59]

} {

[%emt 00:00:30]

} bxc4 {

[%clk 00:56:52]

} {

[%emt 00:01:01]

} 25. Ne6 {

[%clk 01:15:22]

} {

[%emt 00:00:06]

} Rcd7 {

[%clk 00:57:05]

} {

[%emt 00:00:18]

} 26. Nxd8 {

[%clk 01:15:40]

} {

[%emt 00:00:11]

} Rxd8 {

[%clk 00:57:31]

} {

[%emt 00:00:05]

} 27. Rac1 {

[%clk 01:14:38]

} {

[%emt 00:01:32]

} b5 {

[%clk 00:57:29]

} {

[%emt 00:00:32]

} 28. b3 {

[%clk 01:14:10]

} {

[%emt 00:00:58]

} f5 {

[%clk 00:56:49]

} {

[%emt 00:01:10]

} 29. bxc4 {

[%clk 01:14:32]

} {

[%emt 00:00:08]

} Bb2 {

[%clk 00:57:11]

} {

[%emt 00:00:09]

} 30. Rb1 {

[%clk 01:14:53]

} {

[%emt 00:00:09]

} Bxb1 {

[%clk 00:56:30]

} {

[%emt 00:01:10]

} 31. Rxb1 {

[%clk 01:15:19]

} {

[%emt 00:00:05]

} bxc4 {

[%clk 00:56:56]

} {

[%emt 00:00:04]

} 32. Nxc4 {

[%clk 01:14:57]

} {

[%emt 00:00:51]

} Bf6 {

[%clk 00:56:10]

} {

[%emt 00:01:16]

} 33. Rb8 {

[%clk 01:15:01]

} {

[%emt 00:00:26]

} Rf8 {

[%clk 00:53:40]

} {

[%emt 00:03:00]

} 34. a4 {

[%clk 01:15:12]

} {

[%emt 00:00:19]

} Kf7 {

[%clk 00:53:55]

} {

[%emt 00:00:14]

} 35. a5 {

[%clk 01:15:25]

} {

[%emt 00:00:18]

} e6 {

[%clk 00:52:07]

} {

[%emt 00:02:18]

} 36. Rxc8 {

[%clk 01:15:43]

} {

[%emt 00:00:12]

} 1-0

[Event "Kadrioru MK Open A"]
[Site "Tallinn, Paul Keres Chess House, Estonia"]
[Date "2023.02.12"]
[Round "4.1"]
[White "Valdats, Reinis"]
[Black "Andrijashkin, Deniss"]
[Result "0-1"]
[TimeControl "90 minutes with 30 second increment from move 1"]
[WhiteElo "1736"]
[BlackElo "2132"]

1. e4 {

[%clk 01:30:58]

} {

[%emt 00:00:01]

} g6 {

[%clk 01:17:23]

} {

[%emt 00:13:34]

} 2. d4 {

[%clk 01:31:25]

} {

[%emt 00:00:07]

} Bg7 {

[%clk 01:17:50]

} {

[%emt 00:00:03]

} 3. Nc3 {

[%clk 01:31:48]

} {

[%emt 00:00:06]

} a6 {

[%clk 01:17:00]

} {

[%emt 00:01:20]

} 4. Be3 {

[%clk 01:30:32]

} {

[%emt 00:01:45]

} b5 {

[%clk 01:16:37]

} {

[%emt 00:00:54]

} 5. Bd3 {

[%clk 01:21:18]

} {

[%emt 00:09:45]

} Bb7 {

[%clk 01:12:00]

} {

[%emt 00:05:07]

} 6. Qd2 {

[%clk 01:18:30]

} {

[%emt 00:03:17]

} d6 {

[%clk 01:07:00]

} {

[%emt 00:05:31]

} 7. O-O-O {

[%clk 01:16:00]

} {

[%emt 00:03:00]

} Nd7 {

[%clk 00:59:35]

} {

[%emt 00:07:55]

} 8. f3 {

[%clk 00:58:21]

} {

[%emt 00:18:09]

} Rc8 {

[%clk 00:51:15]

} {

[%emt 00:08:47]

} 9. g4 {

[%clk 00:52:16]

} {

[%emt 00:06:38]

} c5 {

[%clk 00:42:06]

} {

[%emt 00:09:39]

} 10. dxc5 {

[%clk 00:51:06]

} {

[%emt 00:01:40]

} Nxc5 {

[%clk 00:41:07]

} {

[%emt 00:01:29]

} 11. Nce2 {

[%clk 00:45:47]

} {

[%emt 00:05:48]

} Nf6 {

[%clk 00:24:46]

} {

[%emt 00:16:51]

} 12. Ng3 {

[%clk 00:37:14]

} {

[%emt 00:09:02]

} O-O {

[%clk 00:10:47]

} {

[%emt 00:14:29]

} 13. Bd4 {

[%clk 00:19:48]

} {

[%emt 00:17:56]

} Ne6 {

[%clk 00:09:46]

} {

[%emt 00:01:32]

} 14. Bc3 {

[%clk 00:17:26]

} {

[%emt 00:02:52]

} Rxc3 {

[%clk 00:10:02]

} {

[%emt 00:00:14]

} 15. Qxc3 {

[%clk 00:16:05]

} {

[%emt 00:01:51]

} Nxe4 {

[%clk 00:05:59]

} {

[%emt 00:04:33]

} 16. Qe1 {

[%clk 00:16:07]

} {

[%emt 00:00:28]

} N4c5 {

[%clk 00:05:41]

} {

[%emt 00:00:45]

} 17. N3e2 {

[%clk 00:11:27]

} {

[%emt 00:05:13]

} Na4 {

[%clk 00:02:15]

} {

[%emt 00:03:56]

} 18. c3 {

[%clk 00:11:34]

} {

[%emt 00:00:24]

} Qa5 {

[%clk 00:00:36]

} {

[%emt 00:02:09]

} 19. Bc2 {

[%clk 00:11:25]

} {

[%emt 00:00:39]

} Rc8 {

[%clk 00:00:42]

} {

[%emt 00:00:24]

} 20. Kb1 {

[%clk 00:09:41]

} {

[%emt 00:02:14]

} Nxb2 {

[%clk 00:00:36]

} {

[%emt 00:00:35]

} 21. Kxb2 {

[%clk 00:07:39]

} {

[%emt 00:02:32]

} b4 {

[%clk 00:00:40]

} {

[%emt 00:00:27]

} 22. Ka1 {

[%clk 00:03:48]

} {

[%emt 00:04:21]

} Rxc3 {

[%clk 00:00:50]

} {

[%emt 00:00:19]

} 23. Nxc3 {

[%clk 00:03:25]

} {

[%emt 00:00:53]

} Bxc3+ {

[%clk 00:01:10]

} {

[%emt 00:00:11]

} 24. Qxc3 {

[%clk 00:03:41]

} {

[%emt 00:00:13]

} bxc3 {

[%clk 00:01:37]

} {

[%emt 00:00:03]

} 25. Rb1 {

[%clk 00:02:30]

} {

[%emt 00:01:41]

} Bd5 {

[%clk 00:02:01]

} {

[%emt 00:00:06]

} 26. Bb3 {

[%clk 00:02:51]

} {

[%emt 00:00:09]

} c2 {

[%clk 00:02:26]

} {

[%emt 00:00:05]

} 0-1